bitfinex/quotes_SOLUSD_20251216
["timestamp","ask_amount","ask_price","bid_price","bid_amount"]
[1765919889808,0.67,128.58,128.55,8.48]
[1765919890877,0.67,128.58,128.55,10.8978628]
[1765919891982,0.67,128.57,128.55,10.8978628]
[1765919893203,0.67,128.57,128.55,18.67682401]
[1765919893404,0.67,128.58,128.56,2.4178628]
[1765919894490,8.44731078,128.58,128.56,2.4178628]
[1765919894696,0.67,128.57,128.55,16.25896121]
[1765919894899,0.67,128.57,128.55,18.67682401]
[1765919895402,0.67,128.57,128.55,16.25896121]
[1765919895616,8.44788974,128.57,128.55,8.48]
[1765919895798,8.44788974,128.57,128.55,10.8978628]
[1765919896104,0.67,128.57,128.55,10.8978628]
[1765919896609,8.44754372,128.58,128.55,10.8978628]
[1765919896804,0.67,128.57,128.55,18.67689161]
[1765919899026,27.22276876,128.57,128.52,7.78067113]
[1765919899196,0.67,128.56,128.53,2.4178628]
[1765919901200,0.67,128.55,128.53,2.4178628]
[1765919904818,0.67,128.55,128.54,2.4178628]
[1765919905023,0.67,128.55,128.53,2.4178628]
[1765919908004,0.67,128.55,128.54,2.4178628]
[1765919909535,8.44911522,128.55,128.53,2.4178628]
[1765919910030,0.67,128.55,128.53,2.4178628]
[1765919911328,0.67,128.55,128.54,2.4178628]
[1765919917297,0.67,128.55,128.52,16.260582]
[1765919917501,0.67,128.55,128.53,2.4178628]
[1765919917799,8.44916389,128.55,128.53,2.4178628]
[1765919921439,8.44916389,128.55,128.53,3.78153516]
[1765919922829,0.67,128.55,128.53,3.78153516]
[1765919924841,0.67,128.55,128.53,3.78155687]
[1765919930520,8.80994492,128.54,128.46,29.88777754]
[1765919930725,0.67,128.51,128.47,7.78361709]
[1765919930960,0.67,128.51,128.47,11.56517396]
[1765919931646,7.78204936,128.51,128.47,11.56517396]
[1765919931948,0.67,128.5,128.47,11.56517396]
[1765919933949,0.67,128.49,128.47,11.56517396]
[1765919934437,0.67,128.49,128.47,7.78361709]
[1765919934741,0.67,128.49,128.47,11.56517396]
[1765919937816,0.67,128.5,128.47,11.56517396]
[1765919938337,0.67,128.5,128.47,20.04517396]
[1765919942250,0.67,128.49,128.47,20.04517396]
[1765919946549,0.67,128.49,128.47,16.26361709]
[1765919946724,0.67,128.49,128.47,20.04517396]
[1765919949062,0.68,128.48,128.45,3.78155687]
[1765919949357,0.68,128.48,128.45,11.56638571]
[1765919949656,0.68,128.48,128.45,3.78155687]
[1765919950156,0.68,128.48,128.46,3.78155687]
[1765919951337,0.68,128.48,128.46,11.56600001]
[1765919951733,0.68,128.48,128.47,3.78155687]
[1765919951938,7.78240011,128.5,128.47,3.78155687]
[1765919951939,0.68,128.5,128.47,3.78155687]
[1765919952135,0.68,128.5,128.48,3.78155687]
[1765919954768,0.68,128.49,128.47,7.78342059]
[1765919955064,0.68,128.49,128.48,3.78155687]
[1765919955866,0.68,128.48,128.46,3.78155687]
[1765919959067,0.68,128.48,128.46,11.56605449]
[1765919959265,0.68,128.48,128.47,3.78155687]
[1765919960967,0.68,128.48,128.46,3.78155687]
[1765919962172,0.68,128.48,128.47,3.78155687]
[1765919962670,0.68,128.48,128.46,3.78155687]
[1765919964468,0.68,128.46,128.44,0.2]
[1765919964671,0.68,128.46,128.45,3.78155687]
[1765919965172,0.68,128.46,128.44,0.2]
[1765919965370,7.78391842,128.47,128.44,0.2]
[1765919965371,11.11767296,128.45,128.44,0.2]
[1765919967379,10.43767296,128.45,128.44,3.98155687]
[1765919967565,8.46500253,128.46,128.44,3.98155687]
[1765919968078,0.68,128.45,128.44,3.98155687]
[1765919970187,8.4651304,128.45,128.44,3.98155687]
[1765919970550,8.4651304,128.45,128.44,0.2]
[1765919977891,21.05663219,128.45,128.44,0.2]
[1765919978192,29.55663219,128.45,128.44,0.2]
[1765919978598,25.77507532,128.45,128.44,0.2]
[1765919980412,8.4651304,128.45,128.44,0.2]
[1765919987898,17.27507532,128.45,128.44,0.2]
[1765919989210,25.77507532,128.45,128.44,0.2]
[1765919993303,28.19937801,128.45,128.44,0.2]
[1765919994280,38.63705097,128.45,128.44,0.2]
[1765919994476,28.19937801,128.45,128.44,1e-08]
[1765919994717,28.20128606,128.45,128.44,1e-08]
[1765919995010,31.32250645,128.45,128.44,1e-08]
[1765919997689,31.32250645,128.45,128.43,0.2]
[1765919997690,11.94615566,128.43,128.42,1e-08]
[1765919997888,20.44615566,128.43,128.42,1e-08]
[1765919998297,23.56786323,128.43,128.42,1e-08]
[1765919999607,31.35420598,128.43,128.42,1e-08]
[1765920017847,35.53396063,128.43,128.42,1e-08]
[1765920018530,36.25396063,128.43,128.42,1e-08]
[1765920018709,39.37518102,128.43,128.42,1e-08]
[1765920019712,41.80139176,128.43,128.42,1e-08]
[1765920020138,3.12122039,128.43,128.42,2.42621075]
[1765920020446,7.78543962,128.45,128.42,2.42621075]
[1765920020634,7.78543962,128.45,128.43,2.42621074]
[1765920021024,19.71526587,128.46,128.44,2.42621074]
[1765920021224,16.59477596,128.46,128.44,2.42621074]
[1765920021425,27.03244892,128.46,128.44,2.42621074]
[1765920022044,10.43767296,128.44,128.43,2.42621074]
[1765920023668,10.43767296,128.44,128.42,1e-08]
[1765920023852,10.43767296,128.44,128.43,2.42621074]
[1765920029271,9.52994492,128.43,128.42,1e-08]
[1765920029571,19.73615566,128.43,128.42,1e-08]
[1765920030149,22.85737605,128.43,128.42,1e-08]
[1765920030348,3.12122039,128.43,128.42,1e-08]
[1765920030549,37.68775081,128.44,128.42,1e-08]
[1765920030749,21.34414286,128.44,128.42,2.42621075]
[1765920030955,10.43767296,128.44,128.42,2.42621075]
[1765920031153,10.43767296,128.44,128.43,2.42621074]
[1765920035360,10.90506363,128.46,128.43,10.21255043]
[1765920035565,17.30994492,128.49,128.45,2.42621074]
[1765920035875,17.30994492,128.49,128.46,2.42621074]
[1765920036275,17.30994492,128.49,128.47,2.42621074]
[1765920036474,17.97994492,128.49,128.46,2.42621074]
[1765920036776,8.5,128.49,128.47,2.42621074]
[1765920037176,7.78210116,128.5,128.47,2.42621074]
[1765920037366,16.28168573,128.51,128.49,2.42621074]
[1765920038379,16.28168573,128.51,128.48,2.42621074]
[1765920038978,16.28168573,128.51,128.49,2.42621074]
[1765920039153,16.28168573,128.51,128.48,2.42621074]
[1765920039353,16.28168573,128.51,128.49,2.42621074]
[1765920040864,36.40542473,128.51,128.46,7.78428511]
[1765920041064,36.40542473,128.51,128.48,2.42621074]
[1765920043469,36.40542473,128.51,128.48,3.78471721]
[1765920044479,35.73542473,128.51,128.49,3.78471721]
[1765920044679,36.40542473,128.51,128.47,7.78389998]
[1765920044901,36.40542473,128.51,128.48,3.78471721]
[1765920046371,0.67,128.49,128.47,3.78471721]
[1765920046773,9.47994492,128.5,128.47,3.78471721]
[1765920047567,7.78270682,128.49,128.47,3.78471721]
[1765920049489,31.89272486,128.51,128.48,3.78471721]
[1765920049668,9.17,128.51,128.48,3.78471721]
[1765920050191,9.17,128.51,128.47,7.78383303]
[1765920050364,9.17,128.51,128.48,3.78471721]
[1765920051484,16.95177159,128.51,128.48,3.78471721]
[1765920056092,16.28177159,128.51,128.49,3.78471721]
[1765920056387,16.95177159,128.51,128.49,3.78471721]
[1765920056594,16.95177159,128.51,128.48,3.78471721]
[1765920058084,16.95177159,128.51,128.49,3.78471721]
[1765920060017,16.95177159,128.51,128.48,3.78471721]
[1765920061919,8.5,128.51,128.49,3.78471721]
[1765920062099,16.28154913,128.51,128.48,3.78471721]
[1765920062914,0.67,128.5,128.47,7.78361967]
[1765920063215,0.67,128.5,128.47,3.78471721]
[1765920063578,0.67,128.5,128.47,3.78502531]
[1765920063784,8.45226584,128.5,128.47,11.56894275]
[1765920065926,7.78226584,128.5,128.47,3.78502531]
[1765920066126,0.67,128.49,128.47,3.78502531]
[1765920067031,8.80994492,128.46,128.42,1e-08]
[1765920067230,19.24761788,128.43,128.42,1e-08]
[1765920067404,18.93767296,128.43,128.42,1e-08]
[1765920067610,21.10116531,128.45,128.42,1e-08]
[1765920068013,28.88676744,128.45,128.42,1e-08]
[1765920068923,0.67,128.44,128.42,1e-08]
[1765920069918,28.21676744,128.45,128.42,3.78502532]
[1765920070110,28.88676744,128.45,128.42,3.78502532]
[1765920070606,28.88676744,128.45,128.42,1e-08]
[1765920070812,28.88676744,128.45,128.42,3.78502532]
[1765920072112,28.21676744,128.45,128.42,3.78502532]
[1765920072322,28.88676744,128.45,128.42,3.78502532]
[1765920076908,28.21676744,128.45,128.42,3.78502532]
[1765920077116,28.21676744,128.45,128.43,3.78502531]
[1765920077317,8.5,128.45,128.44,3.78502531]
[1765920077515,18.22238129,128.46,128.44,3.78502531]
[1765920077730,18.89238129,128.46,128.44,3.78502531]
[1765920078123,10.43767296,128.46,128.45,3.78502531]
[1765920079117,25.09405776,128.47,128.45,3.78502531]
[1765920079118,8.5,128.47,128.45,3.78502531]
[1765920079317,8.45357129,128.48,128.45,3.78502531]
[1765920079632,10.43767296,128.47,128.46,3.78502531]
[1765920080028,25.76281196,128.49,128.46,3.78502531]
[1765920080726,25.76281196,128.49,128.47,3.78502531]
[1765920080727,16.28286704,128.49,128.47,3.78502531]
[1765920081043,8.45286704,128.49,128.47,3.78502531]
[1765920083533,8.45286704,128.49,128.45,7.7851304]
[1765920083733,8.45286704,128.49,128.47,3.78502531]
[1765920084151,0.67,128.48,128.45,7.7851304]
[1765920084325,8.45286704,128.49,128.47,3.78502531]
[1765920084844,0.67,128.48,128.47,3.78502531]
[1765920085747,7.78286704,128.49,128.47,3.78502531]
[1765920086057,0.67,128.48,128.46,7.78448147]
[1765920086359,0.67,128.48,128.47,3.78502531]
[1765920087850,0.67,128.48,128.45,7.7851304]
[1765920088052,0.67,128.48,128.46,3.78502531]
[1765920088053,8.45345755,128.48,128.46,3.78502531]
[1765920091274,8.45345755,128.48,128.45,7.78505867]
[1765920091449,8.45345755,128.48,128.46,3.78502531]
[1765920093831,8.45270682,128.49,128.46,3.78502531]
[1765920094235,7.78270682,128.49,128.46,3.78502531]
[1765920094542,0.66,128.48,128.46,3.78502531]
[1765920095355,0.66,128.48,128.45,7.78505867]
[1765920095560,0.71,128.48,128.46,3.78502531]
[1765920098258,0.71,128.48,128.46,11.56925529]
[1765920098438,0.71,128.48,128.46,7.78422998]
[1765920098638,0.71,128.48,128.47,3.78502531]
[1765920098841,0.71,128.54,128.47,12.28502531]
[1765920099041,8.58873418,128.56,128.53,3.78502531]
[1765920099340,0.71,128.55,128.52,3.78502531]
[1765920099553,0.71,128.55,128.54,3.78502531]
[1765920099749,0.71,128.55,128.51,8.5]
[1765920099949,0.71,128.55,128.54,3.78502531]
[1765920102863,0.71,128.55,128.53,3.78502531]
[1765920103557,0.71,128.55,128.53,2.42032367]
[1765920104869,0.71,128.54,128.5,7.78179778]
[1765920105177,0.71,128.54,128.51,2.42032367]
[1765920105561,0.71,128.54,128.5,10.20212145]
[1765920106084,0.71,128.52,128.5,2.42032367]
[1765920106680,0.71,128.52,128.49,10.20273392]
[1765920108068,0.71,128.52,128.5,2.42032367]
[1765920114492,0.71,128.51,128.5,2.42032367]
[1765920114789,0.71,128.51,128.49,10.20273392]
[1765920115795,0.71,128.52,128.49,10.20273392]
[1765920117670,0.71,128.51,128.48,7.78300022]
[1765920117877,0.71,128.51,128.48,10.20332389]
[1765920120508,7.78153385,128.51,128.48,2.42032367]
[1765920120679,0.71,128.5,128.47,10.20396665]
[1765920121073,0.71,128.5,128.46,18.7045579]
[1765920122108,27.23527285,128.51,128.45,10.20521336]
[1765920122109,0.71,128.48,128.45,10.20521336]
[1765920122285,0.71,128.48,128.45,18.70521336]
[1765920124877,0.67,128.47,128.44,7.78568494]
[1765920128006,0.67,128.47,128.44,10.20600861]
[1765920130901,0.67,128.47,128.44,7.78568494]
[1765920131099,0.67,128.47,128.44,10.20600861]
[1765920135004,0.67,128.47,128.44,10.20937439]
[1765920136824,0.67,128.47,128.42,1e-08]
[1765920136825,0.67,128.45,128.42,1e-08]
[1765920137620,0.67,128.45,128.42,7.78665862]
[1765920139015,8.80994492,128.44,128.42,1e-08]
[1765920139218,11.23363437,128.43,128.42,1e-08]
[1765920139921,19.01997712,128.43,128.42,1e-08]
[1765920140934,16.59628767,128.43,128.42,1e-08]
[1765920143328,0.67,128.43,128.42,1e-08]
[1765920145717,8.45634275,128.43,128.42,1e-08]
[1765920150742,7.78634275,128.43,128.42,1e-08]
[1765920151240,8.45634275,128.43,128.42,1e-08]
[1765920160776,19.01997712,128.43,128.42,1e-08]
[1765920161787,10.43767296,128.45,128.42,1e-08]
[1765920162076,10.43767296,128.45,128.43,2.42368945]
[1765920162249,10.43767296,128.45,128.42,2.42368946]
[1765920162956,10.43767296,128.45,128.43,2.42368945]
[1765920163363,10.43767296,128.45,128.43,10.20991955]
[1765920163571,8.50497091,128.46,128.43,2.42368945]
[1765920163777,0.72,128.44,128.42,1e-08]
[1765920164253,21.67130733,128.43,128.42,1e-08]
[1765920164749,19.24761788,128.43,128.42,1e-08]
[1765920165086,27.03396063,128.43,128.42,1e-08]
[1765920180988,27.75396063,128.43,128.42,1e-08]
[1765920181284,27.03396063,128.43,128.42,1e-08]
[1765920198201,30.82423097,128.43,128.39,0.2]
[1765920198405,85.12158636,128.43,128.39,0.2]
[1765920198578,10.43767296,128.41,128.4,0.42]
[1765920200003,0.72,128.4,128.39,0.2]
[1765920200182,9.52994492,128.4,128.39,0.2]
[1765920200874,17.31810691,128.4,128.39,0.2]
[1765920202507,21.10837725,128.4,128.39,0.2]
[1765920202796,17.31871351,128.39,128.38,0.29264656]
[1765920202996,29.60898385,128.39,128.38,0.29264656]
[1765920203413,29.60898385,128.39,128.37,0.2]
[1765920203414,19.96761788,128.38,128.37,0.2]
[1765920203580,9.52994492,128.35,128.34,0.2]
[1765920203778,21.82021526,128.35,128.34,0.2]
[1765920204001,21.82021526,128.35,128.34,0.62]
[1765920204002,8.5,128.35,128.34,0.62]
[1765920204188,10.43767296,128.35,128.34,0.62]
[1765920208013,10.43767296,128.35,128.34,0.2]
[1765920209608,10.43767296,128.35,128.34,0.62]
[1765920211311,10.43767296,128.35,128.34,0.2]
[1765920211509,18.9488689,128.35,128.34,0.2]
[1765920213097,18.2288689,128.35,128.34,0.2]
[1765920213807,18.9488689,128.35,128.34,0.2]
[1765920215614,18.2288689,128.35,128.34,0.2]
[1765920215915,18.9188689,128.35,128.34,0.2]
[1765920219610,36.24881382,128.35,128.34,0.2]
[1765920219812,40.04240644,128.35,128.34,0.2]
[1765920220521,40.04240644,128.35,128.33,0.2]
[1765920220522,13.29353754,128.34,128.33,0.2]
[1765920221108,16.41719534,128.34,128.33,0.2]
[1765920221416,8.80994492,128.31,128.29,0.2]
[1765920221607,20.79782488,128.3,128.29,0.2]
[1765920223303,29.6077698,128.3,128.29,0.2]
[1765920223707,0.69,128.26,128.23,0.42]
[1765920223889,0.69,128.26,128.22,11.59219105]
[1765920223890,0.69,128.26,128.22,0.42]
[1765920224215,9.49994492,128.24,128.21,0.62]
[1765920224720,8.80994492,128.24,128.21,0.2]
[1765920224922,13.29353754,128.22,128.21,0.2]
[1765920225518,21.09263284,128.22,128.21,0.02967221]
[1765920227327,27.04671318,128.22,128.21,0.02967221]
[1765920227714,27.73671318,128.22,128.21,0.02967221]
[1765920234831,19.73255957,128.22,128.21,0.02967221]
[1765920235025,19.93761788,128.19,128.18,0.2]
[1765920235335,30.89113723,128.19,128.18,0.2]
[1765920235915,28.45761788,128.19,128.18,0.2]
[1765920236226,30.89113723,128.19,128.18,0.2]
[1765920236609,38.69205773,128.19,128.18,0.2]
[1765920237116,35.56853838,128.19,128.18,0.2]
[1765920237322,18.95767296,128.19,128.18,0.2]
[1765920237836,10.43767296,128.19,128.18,0.2]
[1765920238127,18.23859346,128.19,128.18,0.2]
[1765920241730,10.43767296,128.19,128.18,0.2]
[1765920241915,25.12988881,128.21,128.18,3.08351935]
[1765920242117,25.12988881,128.21,128.19,0.45]
[1765920242534,16.31994389,128.21,128.19,0.45]
[1765920243237,7.79994389,128.21,128.19,0.45]
[1765920244132,7.79994389,128.21,128.19,2.88351935]
[1765920244734,7.79994389,128.21,128.2,0.45]
[1765920245639,18.23695279,128.22,128.2,2.88351935]
[1765920245938,10.43767296,128.21,128.2,2.88351935]
[1765920246939,10.43767296,128.21,128.2,0.45]
[1765920247137,10.43767296,128.21,128.2,2.88351935]
[1765920249636,37.5471296,128.23,128.21,0.45]
[1765920249637,16.31862412,128.23,128.21,0.45]
[1765920249836,16.31862412,128.23,128.21,2.88351935]
[1765920250736,15.22868246,128.24,128.22,0.45]
[1765920250737,22.30687004,128.24,128.22,0.45]
[1765920251037,23.02687004,128.24,128.21,2.88351935]
[1765920251238,22.30687004,128.24,128.22,0.45]
[1765920252920,22.30687004,128.24,128.22,2.88351935]
[1765920253120,18.23586054,128.24,128.22,2.43351935]
[1765920253320,18.23586054,128.24,128.23,0.45]
[1765920253733,10.43767296,128.24,128.23,2.88351935]
[1765920253918,18.23555193,128.24,128.23,2.43351935]
[1765920254345,0.72,128.22,128.18,2.63351935]
[1765920254735,0.72,128.21,128.18,3.08351935]
[1765920254933,7.79992634,128.21,128.19,2.88351935]
[1765920255824,7.79992634,128.21,128.19,2.43351935]
[1765920256952,8.51927013,128.22,128.2,2.43351935]
[1765920257127,7.79927013,128.22,128.2,2.43351935]
[1765920258326,7.79927013,128.22,128.19,0.45]
[1765920258628,7.79927013,128.22,128.19,2.88351935]
[1765920259360,8.51927013,128.22,128.19,2.88351935]
[1765920259856,16.31858873,128.23,128.2,0.45]
[1765920260173,7.79858873,128.23,128.21,2.43351935]
[1765920260337,7.79858873,128.23,128.21,2.88351935]
[1765920261741,7.79858873,128.23,128.21,0.45]
[1765920261926,7.79858873,128.23,128.2,2.88351935]
[1765920262127,8.51858873,128.23,128.2,2.88351935]
[1765920265357,7.79858873,128.23,128.2,7.8001438]
[1765920265535,7.79817984,128.24,128.22,2.88351935]
[1765920267032,4.06864374,128.27,128.24,0.45]
[1765920267255,0.72,128.28,128.26,2.43351935]
[1765920267553,0.72,128.28,128.24,2.88351935]
[1765920267952,0.72,128.26,128.23,2.43351935]
[1765920268657,0.72,128.24,128.21,2.43351935]
[1765920268843,11.15767296,128.24,128.21,2.43351935]
[1765920269031,18.95597195,128.24,128.21,2.88351935]
[1765920269550,18.95597195,128.24,128.21,10.68317427]
[1765920269741,10.43767296,128.24,128.22,2.43351935]
[1765920269929,18.23572564,128.24,128.22,2.43351935]
[1765920270133,18.95572564,128.24,128.22,2.43351935]
[1765920271328,18.23572564,128.24,128.22,2.88351935]
[1765920271538,8.5175744,128.25,128.23,2.43351935]
[1765920271739,7.7975744,128.25,128.23,2.88351935]
[1765920272140,7.7975744,128.25,128.24,0.45]
[1765920272341,7.7975744,128.25,128.23,2.43351935]
[1765920272561,7.7975744,128.25,128.23,2.88351935]
[1765920272746,7.7975744,128.25,128.23,0.45]
[1765920275776,7.7975744,128.25,128.22,2.88351935]
[1765920276775,7.7975744,128.25,128.22,10.6825911]
[1765920277446,7.7975744,128.25,128.22,8.24907175]
[1765920277770,7.7975744,128.25,128.22,10.68091309]
[1765920278358,0.7,128.25,128.22,2.88184134]
[1765920280679,8.49757419,128.25,128.22,2.88184134]
[1765920282582,0.7,128.25,128.23,2.88184134]
[1765920282979,7.79666302,128.26,128.24,2.88184134]
[1765920283578,7.79666302,128.26,128.24,2.43184134]
[1765920283783,18.23398527,128.27,128.25,2.88184134]
[1765920285060,18.93398527,128.27,128.25,2.43184134]
[1765920286774,7.79574254,128.28,128.26,0.45]
[1765920287099,7.79574254,128.28,128.26,2.88184134]
[1765920287959,7.79514303,128.29,128.27,2.43184134]
[1765920288159,8.49514303,128.29,128.27,2.43184134]
[1765920289297,8.49514303,128.29,128.26,2.88184134]
[1765920289473,8.49514303,128.29,128.26,4.24760455]
[1765920296598,8.49514303,128.29,128.26,12.04418428]
[1765920297195,18.23216455,128.3,128.27,3.79760455]
[1765920297400,18.93216455,128.3,128.27,4.24760455]
[1765920297713,0.7,128.29,128.27,4.24760455]
[1765920298298,18.93216455,128.3,128.27,12.04357208]
[1765920298466,10.43767296,128.3,128.29,0.45]
[1765920298668,10.43767296,128.3,128.28,4.24760455]
[1765920299082,10.43767296,128.3,128.29,3.79760455]
[1765920300180,18.2319602,128.3,128.28,4.24760455]
[1765920300490,0.7,128.29,128.27,3.79760455]
[1765920301287,0.7,128.29,128.27,4.24760455]
[1765920301500,0.7,128.29,128.24,19.49377272]
[1765920301501,0.7,128.28,128.24,8.52]
[1765920301671,0.7,128.28,128.24,16.31764087]
[1765920301872,0.7,128.28,128.24,12.04524542]
[1765920302097,9.22,128.29,128.26,0.45]
[1765920302297,7.79544745,128.28,128.26,0.45]
[1765920302482,8.49544745,128.28,128.25,12.0448665]
[1765920302877,8.49544745,128.28,128.25,4.24760455]
[1765920306803,8.49544745,128.28,128.25,0.45]
[1765920310205,8.49544745,128.28,128.25,4.24760455]
[1765920310700,8.49544745,128.28,128.25,12.04486581]
[1765920311098,8.49544745,128.28,128.25,20.56486581]
[1765920312127,8.49544745,128.28,128.25,12.04486581]
[1765920312279,8.49544745,128.28,128.25,20.56486581]
[1765920312785,28.68499949,128.31,128.27,3.79760455]
[1765920312979,28.68499949,128.31,128.28,3.79760455]
[1765920313311,20.16499949,128.31,128.28,4.24760455]
[1765920313496,7.79394449,128.31,128.29,4.24760455]
[1765920313699,8.47394449,128.31,128.29,3.79760455]
[1765920314209,8.47394449,128.31,128.28,8.97]
[1765920314413,8.47394449,128.31,128.29,3.79760455]
[1765920316208,7.79394449,128.31,128.29,4.24760455]
[1765920317405,7.79394449,128.31,128.29,3.79760455]
[1765920317609,8.47394449,128.31,128.29,3.79760455]
[1765920318114,7.79394449,128.31,128.29,3.79760455]
[1765920318289,0.68,128.3,128.29,3.79760455]
[1765920318606,8.47394449,128.31,128.29,3.79760455]
[1765920321188,10.43767296,128.3,128.29,3.79760455]
[1765920321394,10.43767296,128.3,128.29,4.24760455]
[1765920322213,10.43767296,128.3,128.29,3.79760455]
[1765920324304,10.43767296,128.3,128.29,4.24760455]
[1765920325229,10.43767296,128.3,128.29,3.79760455]
[1765920335812,4.06872799,128.32,128.29,4.24760455]
[1765920335813,12.56206916,128.32,128.29,4.24760455]
[1765920336013,8.49334117,128.32,128.3,4.24760455]
[1765920336210,0.7,128.32,128.3,4.24760455]
[1765920336618,16.31263218,128.33,128.31,3.79760455]
[1765920336822,7.79210583,128.34,128.32,4.24760455]
[1765920337130,8.59147936,128.35,128.33,3.79760455]
[1765920337311,8.59147936,128.35,128.32,8.97]
[1765920337312,8.59147936,128.35,128.34,3.79760455]
[1765920338315,0.1,128.35,128.34,3.79760455]
[1765920338721,0.1,128.35,128.34,4.24760455]
[1765920338915,0.1,128.35,128.34,12.03940757]
[1765920339116,0.1,128.35,128.34,4.24760455]
[1765920339320,0.1,128.35,128.34,12.03940757]
[1765920342018,0.1,128.35,128.34,20.55940757]
[1765920345726,0.1,128.35,128.34,24.35701212]
[1765920346643,0.1,128.35,128.34,24.3429623]
[1765920351433,0.1,128.38,128.36,0.45]
[1765920351624,0.1,128.38,128.37,10.94549567]
[1765920352337,0.8,128.38,128.37,10.94549567]
[1765920353350,0.1,128.38,128.37,10.94549567]
[1765920354853,0.8,128.38,128.37,10.94549567]
[1765920355030,0.1,128.38,128.37,10.94549567]
[1765920355833,0.1,128.38,128.37,18.73547775]
[1765920361063,0.1,128.38,128.37,19.18547775]
[1765920363555,0.1,128.38,128.37,10.66547775]
[1765920363855,0.8,128.38,128.36,18.73576058]
[1765920364455,0.8,128.38,128.36,16.31026491]
[1765920365289,0.8,128.38,128.36,7.79026491]
[1765920365460,0.8,128.38,128.36,16.31026491]
[1765920370159,0.8,128.38,128.35,16.31092593]
[1765920370160,0.65,128.37,128.35,16.31092593]
[1765920371566,7.79002002,128.37,128.34,7.79148972]
[1765920371748,0.65,128.36,128.33,7.79214147]
[1765920372087,0.65,128.36,128.34,7.7917595]
[1765920372244,0.65,128.37,128.35,2.42549567]
[1765920372445,0.65,128.37,128.34,10.21725517]
[1765920373358,0.65,128.37,128.34,38.21676272]
[1765920373736,0.65,128.37,128.34,29.69676272]
[1765920373938,0.65,128.37,128.35,16.31110197]
[1765920374241,0.65,128.37,128.35,7.79110197]
[1765920374565,0.65,128.37,128.35,16.31110197]
[1765920375154,0.65,128.36,128.34,10.21701078]
[1765920375349,0.65,128.36,128.35,8.52]
[1765920380644,0.65,128.36,128.34,10.21701078]
[1765920380966,0.65,128.36,128.34,18.73701078]
[1765920382970,0.65,128.37,128.34,19.18701078]
[1765920383273,0.75,128.38,128.35,2.42549567]
[1765920383483,0.75,128.38,128.36,2.42549567]
[1765920383647,0.75,128.38,128.36,8.52]
[1765920384475,0.65,128.37,128.36,8.52]
[1765920390188,0.1,128.38,128.36,18.73608463]
[1765920390390,0.1,128.38,128.37,2.87549567]
[1765920390692,0.1,128.38,128.37,2.42549567]
[1765920395492,0.1,128.38,128.36,19.18608463]
[1765920396169,0.8,128.38,128.36,18.73608463]
[1765920398000,0.8,128.38,128.35,10.66646521]
[1765920398299,0.8,128.38,128.36,8.52]
[1765920398797,0.8,128.38,128.35,10.66646521]
[1765920398798,0.7,128.37,128.35,18.73646521]
[1765920399185,0.7,128.37,128.35,16.31096954]
[1765920399687,0.7,128.37,128.35,16.76096954]
[1765920401697,0.7,128.37,128.32,27.27556109]
[1765920401875,0.7,128.37,128.34,2.87549567]
[1765920402074,0.7,128.37,128.35,8.52]
[1765920402998,0.7,128.37,128.35,18.73653666]
[1765920408784,0.7,128.37,128.35,16.31104099]
[1765920408989,0.7,128.37,128.35,18.73653666]
[1765920410206,0.7,128.37,128.35,16.31104099]
[1765920410390,0.7,128.37,128.35,18.73653666]
[1765920413406,0.7,128.37,128.35,20.10322161]
[1765920417209,0.7,128.37,128.35,20.10325157]
[1765920417824,0.7,128.37,128.35,11.58325157]
[1765920418009,0.7,128.37,128.35,20.10325157]
[1765920418211,0.7,128.37,128.35,16.31104099]
[1765920420509,0.7,128.36,128.32,8.97]
[1765920421406,0.7,128.36,128.33,7.79203039]
[1765920421407,8.49066559,128.36,128.33,7.79203039]
[1765920421585,0.7,128.35,128.33,7.79203039]
[1765920421902,8.49066559,128.36,128.33,8.24203039]
[1765920422296,0.7,128.35,128.33,8.24203039]
[1765920423015,0.7,128.37,128.33,8.24203039]
[1765920424113,0.7,128.37,128.33,0.45]
[1765920424422,0.7,128.37,128.33,8.24221855]
[1765920425413,7.79051309,128.37,128.33,8.24221855]